bitfinex/quotes_SOLUSD_20250819
["timestamp","ask_amount","ask_price","bid_price","bid_amount"]
[1755633394576,52.66763,177.38,177.33,0.23]
[1755633395178,11.34763,177.36,177.3,0.23]
[1755633395345,11.34763,177.36,177.3,11.57763]
[1755633396244,11.34763,177.35,177.29,11.34763]
[1755633396581,11.34763,177.33,177.28,11.34763]
[1755633397094,11.34763,177.34,177.29,0.23]
[1755633397251,11.34763,177.34,177.29,11.57763]
[1755633397444,11.34763,177.34,177.3,0.23]
[1755633397660,42.01,177.36,177.31,11.57763]
[1755633397661,41.3,177.36,177.31,11.57763]
[1755633397960,52.64763,177.36,177.31,11.57763]
[1755633398441,41.3,177.36,177.32,0.23]
[1755633398646,52.64763,177.37,177.32,0.23]
[1755633398862,11.34763,177.36,177.31,11.34763]
[1755633399273,11.34763,177.36,177.31,11.57763]
[1755633400775,11.34763,177.34,177.29,11.34763]
[1755633400953,12.05763,177.34,177.28,11.34763]
[1755633401281,0.71,177.34,177.29,11.34763]
[1755633401767,0.71,177.34,177.27,6.03716826]
[1755633401972,0.71,177.34,177.29,11.34763]
[1755633402160,11.34763,177.34,177.28,11.34763]
[1755633402474,11.34763,177.34,177.27,11.44763]
[1755633402475,12.05763,177.33,177.27,11.44763]
[1755633403474,12.05763,177.33,177.28,11.34763]
[1755633403874,11.34763,177.31,177.27,0.1]
[1755633404180,0.71,177.32,177.27,0.1]
[1755633404181,11.34763,177.3,177.27,0.1]
[1755633404392,13.59559401,177.33,177.27,0.1]
[1755633404680,0.71,177.3,177.27,0.1]
[1755633405252,0.71,177.33,177.27,0.1]
[1755633406761,4.48132716,177.33,177.27,0.1]
[1755633407084,0.71,177.32,177.27,0.1]
[1755633407284,12.05763,177.32,177.27,11.44763]
[1755633407596,26.0,177.34,177.29,11.34763]
[1755633407796,53.23763,177.35,177.29,11.34763]
[1755633407965,53.23763,177.35,177.3,11.34763]
[1755633408293,53.23763,177.35,177.29,0.23]
[1755633408294,0.71,177.34,177.29,11.34763]
[1755633408586,0.3386,177.32,177.27,0.33]
[1755633408763,0.3386,177.32,177.29,11.34763]
[1755633409083,11.68623,177.32,177.27,0.33]
[1755633409269,12.05763,177.31,177.27,0.1]
[1755633409982,0.71,177.31,177.27,11.44763]
[1755633410276,0.3386,177.32,177.29,11.34763]
[1755633410480,0.3386,177.32,177.3,11.34763]
[1755633410794,0.3386,177.32,177.29,11.34763]
[1755633411389,0.3386,177.32,177.27,0.1]
[1755633411390,0.3386,177.32,177.3,0.23]
[1755633411570,1.0486,177.32,177.28,11.34763]
[1755633412170,0.71,177.31,177.27,11.44763]
[1755633412357,0.71,177.3,177.27,0.1]
[1755633413069,0.3386,177.32,177.27,11.44763]
[1755633413270,0.71,177.31,177.27,0.1]
[1755633413465,0.71,177.3,177.27,0.1]
[1755633414080,1.0486,177.32,177.27,11.44763]
[1755633414376,0.3386,177.32,177.27,11.44763]
[1755633414584,0.71,177.31,177.27,0.1]
[1755633414962,0.71,177.3,177.27,0.1]
[1755633415585,11.34763,177.31,177.27,0.1]
[1755633415786,24.94322401,177.28,177.27,0.1]
[1755633416081,24.94322401,177.28,177.23,0.06]
[1755633416082,39.59559401,177.27,177.23,0.06]
[1755633416285,11.34763,177.24,177.23,0.06]
[1755633416488,52.52763,177.24,177.23,0.06]
[1755633416661,56.30543183,177.24,177.23,0.06]
[1755633416863,57.01543183,177.24,177.23,0.06]
[1755633417286,53.23763,177.24,177.23,0.06]
[1755633418982,57.01547868,177.24,177.23,0.06]
[1755633420605,56.30547868,177.24,177.23,0.06]
[1755633420781,0.71,177.26,177.23,0.06]
[1755633420965,41.12,177.25,177.23,0.06]
[1755633421464,41.12,177.26,177.23,11.83763]
[1755633421660,0.71,177.26,177.23,0.06]
[1755633422097,52.46763,177.27,177.23,0.06]
[1755633422271,53.17763,177.27,177.23,0.06]
[1755633422461,41.83,177.27,177.23,0.06]
[1755633422664,41.12,177.27,177.23,11.40763]
[1755633423081,41.14,177.27,177.23,11.83763]
[1755633423272,12.05763,177.29,177.23,11.83763]
[1755633423484,41.12,177.28,177.23,11.83763]
[1755633423992,41.83,177.28,177.23,11.40763]
[1755633424288,0.67,177.3,177.24,11.34763]
[1755633424489,41.12,177.28,177.24,11.77763]
[1755633424872,41.12,177.28,177.24,11.34763]
[1755633426173,41.79,177.28,177.24,11.34763]
[1755633426395,0.67,177.28,177.24,7.30463868]
[1755633426593,41.12,177.28,177.25,7.30463868]
[1755633426777,41.12,177.28,177.23,0.06]
[1755633427103,131.67,177.33,177.27,7.30463868]
[1755633427304,44.89742148,177.32,177.3,7.30463868]
[1755633427466,41.12,177.32,177.3,7.30463868]
[1755633427666,41.79,177.32,177.28,7.30463868]
[1755633427984,41.12,177.32,177.3,7.30463868]
[1755633428504,41.79,177.35,177.31,11.35373025]
[1755633429074,3.77916939,177.34,177.31,11.35373025]
[1755633429273,3.77996618,177.34,177.31,11.35373025]
[1755633429581,3.77996618,177.34,177.3,11.35373025]
[1755633429790,4.44996618,177.34,177.3,11.35373025]
[1755633430204,0.67,177.33,177.29,11.35373025]
[1755633430509,0.67,177.33,177.3,11.35373025]
[1755633430714,3.77996618,177.34,177.31,11.35373025]
[1755633431232,4.44996618,177.34,177.3,11.35373025]
[1755633431705,4.44996618,177.34,177.31,11.35373025]
[1755633431875,0.67,177.34,177.31,11.35373025]
[1755633432080,4.45318851,177.34,177.31,11.35373025]
[1755633434271,4.45318851,177.34,177.3,11.35373025]
[1755633434272,3.78318851,177.34,177.3,11.35373025]
[1755633434472,0.67,177.33,177.3,11.35373025]
[1755633434669,3.78318851,177.33,177.31,11.35373025]
[1755633434874,4.45318851,177.34,177.31,11.35373025]
[1755633435915,3.78318851,177.34,177.31,11.35373025]
[1755633436587,4.45318851,177.34,177.28,0.43]
[1755633437810,0.67,177.33,177.27,26.0]
[1755633438120,3.78318851,177.34,177.31,11.35373025]
[1755633438323,4.45318851,177.34,177.31,11.35373025]
[1755633438919,0.67,177.33,177.3,11.35373025]
[1755633439789,0.67,177.32,177.3,11.35373025]
[1755633440613,0.67,177.32,177.28,11.35373025]
[1755633440817,0.67,177.31,177.28,11.35373025]
[1755633441508,4.45318851,177.33,177.28,11.35373025]
[1755633441710,4.45318851,177.33,177.24,0.43]
[1755633441711,41.77,177.32,177.24,0.43]
[1755633441894,4.45318851,177.31,177.26,11.35373025]
[1755633442100,0.67,177.3,177.26,11.35373025]
[1755633442314,3.78318851,177.31,177.29,11.35373025]
[1755633442694,0.67,177.3,177.27,11.35373025]
[1755633443205,3.78318851,177.31,177.27,11.35373025]
[1755633443603,4.45318851,177.31,177.27,11.35373025]
[1755633444097,0.67,177.3,177.27,11.35373025]
[1755633444304,0.67,177.3,177.26,11.35373025]
[1755633444611,0.67,177.29,177.26,11.35373025]
[1755633444816,4.45318851,177.31,177.27,11.35373025]
[1755633445997,4.45318851,177.31,177.26,11.35373025]
[1755633446399,0.67,177.3,177.26,11.35373025]
[1755633446921,3.78318851,177.31,177.27,11.35373025]
[1755633447320,4.45318851,177.31,177.27,11.35373025]
[1755633448305,4.45318851,177.31,177.27,7.30189216]
[1755633448798,3.78318851,177.31,177.27,7.73189216]
[1755633448998,4.45318851,177.31,177.27,7.30189216]
[1755633449322,0.67,177.3,177.24,0.20216157]
[1755633449629,7.30189216,177.28,177.24,0.06]
[1755633449827,0.67,177.27,177.24,0.06]
[1755633450121,0.67,177.26,177.24,0.06]
[1755633450332,7.97189216,177.26,177.24,0.06]
[1755633450521,0.67,177.25,177.24,0.06]
[1755633450700,49.07189216,177.25,177.24,0.06]
[1755633451022,52.85508067,177.25,177.24,0.06]
[1755633454819,66.45067468,177.25,177.24,0.06]
[1755633455130,71.15851218,177.25,177.24,0.06]
[1755633456633,66.45067468,177.25,177.24,0.06]
[1755633458943,84.10215328,177.25,177.24,0.06]
[1755633459132,13.59559401,177.24,177.23,0.06]
[1755633459336,37.3908684,177.24,177.23,0.06]
[1755633459646,29.58897624,177.24,177.23,0.06]
[1755633459937,24.85067468,177.24,177.23,0.06]
[1755633460357,11.75508067,177.24,177.23,0.06]
[1755633460509,52.85508067,177.24,177.23,0.06]
[1755633461718,66.45067468,177.24,177.23,0.06]
[1755633462128,73.75256684,177.24,177.23,0.06]
[1755633463514,66.45067468,177.24,177.23,0.06]
[1755633463944,26.0,177.21,177.14,0.43]
[1755633464145,7.30189216,177.16,177.12,0.43]
[1755633464444,7.30189216,177.17,177.12,7.73189216]
[1755633464754,7.30189216,177.17,177.13,0.43]
[1755633464919,7.30189216,177.16,177.13,0.43]
[1755633465127,7.30189216,177.14,177.11,0.43]
[1755633465336,7.30189216,177.13,177.11,0.43]
[1755633465818,7.30189216,177.12,177.08,0.43]
[1755633466241,7.30189216,177.12,177.09,0.43]
[1755633466435,48.40189216,177.13,177.1,0.43]
[1755633466824,41.1,177.13,177.11,0.43]
[1755633467028,7.30189216,177.12,177.07,7.30189216]
[1755633467325,41.1,177.13,177.09,0.43]
[1755633467537,48.40189216,177.13,177.1,0.43]
[1755633467932,7.30189216,177.12,177.08,0.43]
[1755633468140,7.30189216,177.12,177.02,44.16435349]
[1755633468141,7.30189216,177.09,177.05,0.43]
[1755633468446,7.30189216,177.08,177.05,0.43]
[1755633468769,7.30189216,177.06,177.03,5.97811709]
[1755633468948,7.30189216,177.06,177.03,0.43]
[1755633469630,7.30189216,177.06,177.02,1.18690449]
[1755633469946,7.30189216,177.06,177.03,0.43]
[1755633470242,41.1,177.09,177.04,0.43]
[1755633470443,7.30189216,177.08,177.05,0.43]
[1755633470655,41.1,177.09,177.06,0.43]
[1755633470828,7.30189216,177.11,177.07,0.43]
[1755633471030,7.30189216,177.1,177.05,0.43]
[1755633471259,7.30189216,177.06,177.02,1.18690449]
[1755633471471,0.3386,177.06,177.03,0.43]
[1755633471622,0.3386,177.06,177.04,0.43]
[1755633472023,7.30189216,177.05,177.02,1.18690449]
[1755633472666,7.64049216,177.06,177.02,1.61690449]
[1755633473939,7.30189216,177.04,177.02,1.18690449]
[1755633474338,7.30189216,177.05,177.02,1.18690449]
[1755633475467,7.30189216,177.05,177.02,1.61690449]
[1755633475765,7.30189216,177.05,177.02,1.18690449]
[1755633476670,7.97189216,177.04,177.02,1.18690449]
[1755633476850,7.30189216,177.04,177.02,1.18690449]
[1755633477053,0.3386,177.06,177.02,1.18690449]
[1755633477368,8.31049216,177.06,177.02,1.18690449]
[1755633477754,7.30189216,177.05,177.02,1.18690449]
[1755633477950,7.30189216,177.03,177.02,1.18690449]
[1755633478144,7.97189216,177.03,177.02,1.24690449]
[1755633480478,49.07189216,177.03,177.02,1.24690449]
[1755633481873,75.07189216,177.03,177.02,1.24690449]
[1755633482276,62.80964774,177.03,177.02,1.24690449]
[1755633482658,55.50775558,177.03,177.02,1.24690449]
[1755633482866,62.66748617,177.03,177.02,1.24690449]
[1755633483068,62.80964774,177.03,177.02,1.24690449]
[1755633483466,26.0,177.0,176.85,18.18727855]
[1755633483657,7.30189216,176.97,176.92,7.30189216]
[1755633483863,0.67,176.99,176.94,7.30189216]
[1755633483864,41.77,176.99,176.94,7.30189216]
[1755633484059,41.77,176.99,176.94,0.43]
[1755633484257,41.1,176.99,176.94,7.73189216]
[1755633484459,41.1,177.0,176.97,7.30189216]
[1755633484895,7.97189216,176.99,176.91,0.43]
[1755633485192,7.30189216,176.95,176.89,7.73189216]
[1755633485358,7.97189216,176.96,176.91,7.30189216]
[1755633485556,41.1,176.97,176.92,0.43]
[1755633485977,41.12,176.99,176.94,7.30189216]
[1755633486163,0.67,177.0,176.96,7.30189216]
[1755633486365,67.12,177.01,176.96,7.73189216]
[1755633486564,67.12,177.01,176.96,7.30189216]
[1755633486783,67.79,177.01,176.96,7.30189216]
[1755633486984,0.67,177.0,176.96,7.30189216]
[1755633487166,74.42189216,177.01,176.96,7.30189216]
[1755633487167,67.79,177.01,176.96,7.30189216]
[1755633487365,0.67,177.03,176.98,7.30189216]
[1755633487675,41.12,177.05,177.01,7.30189216]
[1755633487871,41.12,177.05,177.02,7.30189216]
[1755633488070,41.79,177.08,177.03,7.30189216]
[1755633488282,7.30189216,177.06,176.97,0.43]
[1755633488456,7.30189216,177.02,176.96,7.30189216]
[1755633488790,7.97189216,177.01,176.94,0.43]
[1755633488983,0.67,177.01,176.96,7.30189216]
[1755633489182,0.67,177.0,176.94,0.43]
[1755633489488,0.67,177.0,176.97,7.30189216]
[1755633489660,7.30189216,177.01,176.96,7.30189216]
[1755633489865,41.12,177.04,177.0,7.30189216]
[1755633490174,41.12,177.04,177.01,7.30189216]
[1755633490698,41.12,177.07,177.03,7.30189216]
[1755633491052,41.12,177.07,177.01,0.43]
[1755633491053,41.79,177.07,177.04,7.30189216]
[1755633491489,41.79,177.07,177.03,7.30189216]
[1755633492065,41.12,177.07,176.97,0.14216157]
[1755633492278,0.67,177.06,177.03,7.30189216]
[1755633492882,0.67,177.12,177.05,7.30189216]
[1755633493187,0.67,177.12,177.1,7.30189216]
[1755633493492,0.67,177.12,177.08,7.30189216]
[1755633493665,0.67,177.11,177.08,7.30189216]
[1755633493857,0.67,177.1,177.08,7.30189216]
[1755633494054,0.3386,177.12,177.08,7.30189216]
[1755633494283,0.3386,177.12,177.09,7.30189216]
[1755633494469,0.3386,177.12,177.08,7.30189216]
[1755633494673,0.3386,177.12,177.09,7.30189216]
[1755633495064,1.0086,177.12,177.08,7.30189216]
[1755633495893,0.3386,177.12,177.11,7.30189216]
[1755633497875,0.3386,177.12,177.09,0.43]
[1755633498081,0.3386,177.12,177.11,7.30189216]
[1755633500363,0.3386,177.12,177.09,0.43]
[1755633500705,0.3386,177.12,177.11,7.30189216]
[1755633501399,0.3386,177.12,177.09,0.43]
[1755633501567,0.3386,177.12,177.1,7.30189216]
[1755633501891,1.0086,177.12,177.08,7.30189216]
[1755633502275,0.67,177.11,177.08,7.30189216]
[1755633502467,0.3386,177.12,177.08,7.30189216]
[1755633502678,0.3386,177.12,177.02,0.06]
[1755633502679,0.67,177.11,177.02,7.791892]
[1755633502890,0.67,177.11,177.04,7.30189216]
[1755633502891,7.30189216,177.1,177.04,7.30189216]
[1755633503288,3.7736172,177.11,177.05,7.30189216]
[1755633503289,0.67,177.09,177.05,7.30189216]
[1755633503485,0.67,177.08,177.05,7.30189216]
[1755633503903,0.67,177.08,177.04,7.30189216]
[1755633504206,7.97189216,177.1,177.05,7.30189216]
[1755633504510,0.67,177.1,177.05,7.30189216]
[1755633504676,41.75,177.12,177.08,7.30189216]
[1755633505096,41.75,177.12,177.09,7.30189216]
[1755633505284,7.97189216,177.15,177.1,7.30189216]
[1755633505503,0.67,177.14,177.09,7.30189216]
[1755633505703,0.67,177.14,177.04,0.14216157]
[1755633505704,7.30189216,177.13,177.05,0.43]
[1755633506013,0.67,177.12,177.07,7.30189216]
[1755633506180,0.67,177.11,177.06,7.30189216]
[1755633506381,0.67,177.1,177.06,7.30189216]
[1755633506600,7.30189216,177.11,177.06,7.30189216]
[1755633506819,3.77921621,177.14,177.06,7.30189216]
[1755633506820,0.67,177.1,177.06,7.30189216]
[1755633507386,3.77921621,177.14,177.07,7.30189216]
[1755633507588,7.97189216,177.13,177.08,7.30189216]
[1755633507786,0.67,177.12,177.07,7.30189216]
[1755633508110,7.30189216,177.13,177.07,7.30189216]
[1755633508405,0.67,177.11,177.07,7.30189216]
[1755633510716,0.67,177.1,177.05,7.30189216]
[1755633511110,7.30189216,177.08,177.02,0.06]
[1755633511414,7.30189216,177.05,177.02,0.06]
[1755633511919,7.97189216,177.05,177.02,0.06]
[1755633512318,7.30189216,177.05,177.02,0.06]
[1755633512506,3.78878873,177.07,177.02,0.06]
[1755633512507,7.97189216,177.04,177.02,0.06]
[1755633513048,7.97189216,177.03,177.02,0.06]
[1755633513402,0.67,177.03,177.02,0.06]
[1755633513876,7.97189216,177.03,177.02,0.06]
[1755633515133,0.67,177.03,177.02,0.06]
[1755633515433,7.97189216,177.03,177.02,0.06]
[1755633515912,7.97189216,177.03,177.0,0.06]
[1755633516107,7.30189216,177.01,177.0,0.06]
[1755633516307,11.09264132,177.01,177.0,0.06]
[1755633516505,11.78264132,177.01,177.0,0.06]
[1755633516923,4.48074916,177.01,177.0,0.06]
[1755633517133,11.78264132,177.01,177.0,0.06]
[1755633517840,4.48074916,177.01,177.0,0.06]
[1755633518027,11.78264132,177.01,177.0,0.06]
[1755633518230,49.07189216,177.01,177.0,0.06]
[1755633518531,52.86264132,177.01,177.0,0.06]
[1755633519720,52.17264132,177.01,177.0,0.06]
[1755633519925,52.86264132,177.01,177.0,0.06]
[1755633520136,41.08,177.01,177.0,0.06]
[1755633520328,49.07189216,177.01,177.0,0.06]
[1755633520538,52.85950119,177.01,177.0,0.06]
[1755633521419,49.07189216,177.01,177.0,0.06]
[1755633521838,48.38189216,177.01,177.0,0.06]
[1755633522248,49.07189216,177.01,177.0,0.06]
[1755633523256,48.38189216,177.01,177.0,0.06]
[1755633524042,49.07189216,177.01,177.0,0.06]
[1755633525564,41.08,177.01,177.0,0.06]
[1755633525764,48.40189216,177.03,177.0,0.06]
[1755633525933,138.30189216,177.05,177.01,0.49]
[1755633526259,52.18688426,177.04,177.0,0.06]
[1755633526444,48.40189216,177.04,177.0,0.06]
[1755633526758,41.1,177.04,177.01,7.79189216]
[1755633526943,131.0,177.05,177.01,7.79189216]
[1755633527324,131.0,177.05,177.01,0.49]
[1755633527748,131.0,177.05,177.0,0.06]
[1755633527936,138.99189216,177.05,177.0,7.36189216]
[1755633528268,131.0,177.05,177.0,7.36189216]
[1755633528425,131.0,177.05,177.01,0.49]
[1755633530158,131.0,177.05,177.0,0.06]
[1755633530331,131.0,177.05,177.0,7.85189216]
[1755633530845,131.0,177.05,177.01,7.79189216]
[1755633531029,131.03,177.05,177.01,7.79189216]
[1755633531224,131.03,177.05,177.02,0.49]
[1755633531431,131.03,177.05,177.01,7.30189216]
[1755633531633,139.02189216,177.05,177.0,7.36189216]
[1755633531844,0.69,177.04,177.0,7.36189216]
[1755633532039,131.03,177.05,177.0,7.36189216]
[1755633532242,131.03,177.05,177.01,7.79189216]
[1755633532445,131.03,177.05,177.01,7.30189216]
[1755633532663,131.72,177.05,177.01,7.30189216]
[1755633533463,7.99189216,177.04,177.0,0.06]
[1755633533835,0.69,177.03,177.0,0.06]
[1755633534036,41.08,177.04,177.0,7.36189216]
[1755633534538,41.77,177.04,177.0,7.36189216]
[1755633534739,41.08,177.04,177.0,0.06]
[1755633534960,0.69,177.03,177.0,0.06]
[1755633535754,41.08,177.04,177.01,7.30189216]
[1755633536134,131.3686,177.05,177.01,7.30189216]
[1755633536334,131.3686,177.05,177.0,7.36189216]
[1755633536550,0.69,177.04,177.0,7.36189216]
[1755633537049,0.69,177.03,177.0,0.06]
[1755633537453,138.67049216,177.05,177.0,0.06]
[1755633537661,0.69,177.02,177.0,0.06]
[1755633538258,0.69,177.01,177.0,0.06]
[1755633538747,48.38189216,177.04,177.0,0.06]
[1755633538948,0.69,177.03,177.0,0.06]
[1755633539256,48.38189216,177.04,177.0,0.06]
[1755633539257,0.69,177.02,177.0,0.06]
[1755633540041,48.38189216,177.04,177.0,0.06]
[1755633540042,0.69,177.01,177.0,0.06]
[1755633540243,132.0586,177.05,177.0,7.36189216]
[1755633540464,0.3686,177.05,177.04,7.30189216]
[1755633540641,0.3686,177.05,177.04,7.79189216]
[1755633540843,0.3686,177.05,177.04,7.93405373]
[1755633541366,0.3686,177.05,177.04,10.19784173]
[1755633541740,0.3686,177.05,177.04,2.753788]
[1755633541937,0.3686,177.05,177.04,10.05568016]
[1755633542138,0.3686,177.05,177.04,9.56568016]
[1755633542748,0.3686,177.05,177.04,7.30189216]
[1755633543046,0.3686,177.05,177.04,10.05580816]
[1755633543893,0.3686,177.05,177.04,10.19796973]
[1755633544941,0.3686,177.05,177.04,9.56580816]
[1755633545350,0.3686,177.05,177.04,10.19796973]
[1755633545851,0.3686,177.05,177.04,36.19796973]
[1755633546082,0.3686,177.05,177.04,28.89607757]
[1755633546287,0.3686,177.05,177.04,35.56580816]
[1755633546503,0.3686,177.05,177.04,9.56580816]
[1755633546769,1.0286,177.05,177.04,2.263916]
[1755633546952,1.0286,177.05,177.0,41.14]
[1755633546953,8.33049216,177.05,177.0,48.44189216]
[1755633547271,0.3686,177.05,177.04,7.30189216]
[1755633547473,0.3686,177.05,177.01,0.49]
[1755633547687,1.0286,177.05,177.03,7.30189216]
[1755633547848,0.3686,177.05,177.03,7.30189216]
[1755633548484,0.3686,177.05,177.04,7.30189216]
[1755633548972,0.3686,177.05,177.03,33.30189216]
[1755633549350,0.3686,177.05,177.03,26.0]
[1755633549554,1.0286,177.05,177.04,26.0]
[1755633549751,1.0286,177.05,177.03,33.30189216]
[1755633550158,1.0286,177.05,177.03,7.30189216]
[1755633550564,0.66,177.04,177.02,7.30189216]
[1755633550749,0.3686,177.05,177.02,7.30189216]
[1755633550957,0.3686,177.05,177.0,74.471892]
[1755633550958,0.3686,177.05,177.04,7.30189216]
[1755633551388,0.3686,177.05,177.03,9.56606416]
[1755633551570,1.0286,177.05,177.03,2.264172]
[1755633551759,0.66,177.04,177.01,7.30189216]
[1755633551958,0.66,177.03,177.01,7.331892]
[1755633552164,0.66,177.03,177.0,48.44189216]
[1755633552568,0.66,177.03,177.0,7.361892]
[1755633552569,0.66,177.02,177.0,7.361892]
[1755633552853,0.66,177.01,177.0,0.06]
[1755633554278,0.03,177.05,177.0,0.06]
[1755633554477,0.66,177.04,177.01,7.30189216]
[1755633554669,0.66,177.03,177.0,7.36189216]
[1755633554978,0.66,177.02,177.0,7.36189216]
[1755633555198,0.66,177.02,177.0,0.06]
[1755633555658,0.69,177.05,177.0,7.36189216]
[1755633555853,0.03,177.05,177.0,0.06]
[1755633556058,0.69,177.05,177.01,7.30189216]
[1755633556280,0.69,177.05,177.02,7.30189216]
[1755633556489,0.03,177.05,177.0,0.55]
[1755633556778,0.03,177.05,177.02,7.30189216]
[1755633557076,0.03,177.05,177.03,7.30189216]
[1755633557887,0.69,177.05,177.0,0.06]
[1755633558060,7.96189216,177.04,177.0,0.06]
[1755633558378,0.66,177.03,177.0,0.06]
[1755633558561,0.66,177.02,177.0,0.06]
[1755633558911,0.03,177.05,177.01,7.30189216]
[1755633559082,0.66,177.04,177.01,7.30189216]
[1755633559586,0.66,177.03,177.01,7.30189216]
[1755633559762,0.69,177.05,177.01,7.30189216]
[1755633559970,0.66,177.04,177.0,0.06]
[1755633560283,7.30189216,177.03,177.0,0.06]
[1755633560468,0.66,177.02,177.0,0.06]
[1755633560882,7.96189216,177.01,177.0,0.06]
[1755633561261,0.66,177.01,177.0,0.06]
[1755633561462,7.30189216,177.02,177.0,0.06]
[1755633561782,0.66,177.01,177.0,0.06]
[1755633562186,7.96189216,177.01,177.0,0.06]
[1755633562785,0.66,177.01,177.0,0.06]
[1755633562995,7.96189216,177.01,177.0,0.06]
[1755633564588,0.66,177.01,177.0,0.06]
[1755633564765,7.96189216,177.01,177.0,0.06]
[1755633565085,0.66,177.01,177.0,0.06]
[1755633565387,7.96189216,177.01,177.0,0.06]
[1755633566064,11.7525272,177.01,177.0,0.06]
[1755633566703,13.59559401,177.0,176.91,7.30189216]
[1755633566868,7.30189216,176.96,176.91,7.30189216]
[1755633567064,0.66,176.98,176.92,7.85189216]
[1755633567285,4.45063504,177.0,176.95,7.30189216]
[1755633567489,11.7525272,177.0,176.95,7.30189216]
[1755633567793,0.66,176.99,176.95,7.30189216]
[1755633568571,3.79063504,177.0,176.91,0.14216157]
[1755633568776,3.79063504,177.0,176.96,7.30189216]
[1755633568992,0.66,177.0,176.96,7.30189216]
[1755633569188,7.30189216,177.01,176.93,0.55]
[1755633569189,0.66,176.99,176.95,7.30189216]
[1755633569801,0.66,176.99,176.93,0.55]
[1755633569964,0.66,176.99,176.95,7.30189216]
[1755633570172,0.66,176.99,176.96,7.30189216]
[1755633570374,0.66,177.01,176.93,0.55]
[1755633570909,7.96189216,177.01,176.93,0.55]
[1755633571075,7.96189216,177.01,176.95,7.30189216]
[1755633571278,7.96189216,177.01,176.96,7.30189216]
[1755633571504,0.66,177.0,176.96,7.30189216]
[1755633572008,0.3386,177.01,176.96,7.85189216]
[1755633572305,0.3386,177.01,176.98,7.30189216]
[1755633573085,0.3386,177.01,176.96,0.55]
[1755633573275,4.79623748,177.01,176.97,7.30189216]
[1755633573481,4.79623748,177.01,176.92,41.6]
[1755633573482,4.13623748,177.01,176.92,41.6]
[1755633573675,4.13623748,177.01,176.97,0.55]
[1755633573878,4.13623669,177.01,176.97,7.30189216]
[1755633574085,0.3386,177.01,177.0,7.30189216]
[1755633574278,0.3386,177.01,177.0,33.85189216]
[1755633574493,0.3386,177.01,177.0,36.11632116]
[1755633574686,0.3386,177.01,177.0,10.11632116]
[1755633576723,0.3386,177.01,177.0,36.11632116]
[1755633577375,0.03,177.02,177.01,0.14216157]
[1755633577582,0.03,177.02,177.01,33.99405373]
[1755633578390,0.03,177.02,177.01,75.77405373]
[1755633580103,0.03,177.02,177.01,68.47216157]
[1755633580305,0.03,177.02,177.01,75.77405373]
[1755633580492,0.03,177.02,177.01,33.99405373]
[1755633580696,0.03,177.02,177.01,75.75405373]
[1755633580999,0.03,177.05,177.01,75.75405373]
[1755633581309,0.03,177.05,177.04,7.30189216]
[1755633581808,0.74,177.05,177.0,2.264429]
[1755633582009,0.74,177.05,176.96,0.06]
[1755633582010,0.03,177.02,176.99,7.30189216]
[1755633582215,0.03,177.02,176.99,0.55]
[1755633582380,0.03,177.02,177.01,7.30189216]
[1755633583936,0.03,177.02,176.97,0.14216157]
[1755633584084,0.03,177.02,177.01,7.30189216]
[1755633585524,0.74,177.02,177.0,7.30189216]
[1755633585724,0.03,177.02,177.01,7.30189216]
[1755633586305,0.03,177.02,177.01,7.44405373]
[1755633586607,0.03,177.02,177.01,33.99405373]
[1755633586806,0.03,177.05,177.04,47.03964774]